fUSD/lending_fUSD_20260308
["ID","MTS","AMOUNT","RATE_DAILY","PERIOD"]
[407957663,1772928146352,2465.16334737,5.48e-05,120]
[407957664,1772928245130,610.0,0.00017,120]
[407957665,1772928245159,2009.0,0.00017,120]
[407957666,1772928396133,-196.12926841,0.00015471,2]
[407957676,1772928631419,-554.98,0.00013296,2]
[407957677,1772928631428,-300.0,0.00014626,2]
[407957678,1772928631437,-5000.0,0.00014626,2]
[407957679,1772928631447,-204.77558147,0.00014626,2]
[407957680,1772928631456,-300.0,0.00014626,2]
[407957681,1772928631465,-250.0,0.00015,2]
[407957682,1772928631475,-443.57,0.00015471,2]
[407957683,1772928631485,-300.0,0.00016135,2]
[407957684,1772928631494,-5000.00137608,0.000162,5]
[407957685,1772928631503,-5000.0,0.000164,3]
[407957686,1772928631512,-300.0,0.00016489,2]
[407957687,1772928631521,-1200.0,0.00016489,2]
[407957688,1772928631531,-578.0,0.00016495,2]
[407957689,1772928631540,-550.0,0.00016499,2]
[407957690,1772928631549,-2500.0,0.000165,2]
[407957692,1772928631558,-2500.0,0.000165,2]
[407957694,1772928631567,-2500.0,0.000165,2]
[407957695,1772928631576,-2500.0,0.000165,2]
[407957697,1772928631585,-2500.0,0.000165,2]
[407957699,1772928631594,-150.0,0.0001668,2]
[407957700,1772928631603,-166.5,0.00016712,2]
[407957701,1772928631613,-1063.79327474,0.00016799,2]
[407957702,1772928631622,-39752.34973166,0.00016799,2]
[407957703,1772928631631,-2562.87261758,0.000168,2]
[407957704,1772928631640,-1074.3336151,0.00016818,2]
[407957705,1772928631649,-330.958288,0.00016863,7]
[407957706,1772928631658,-211.0,0.00016872,2]
[407957707,1772928631667,-194.14142927,0.00016889,2]
[407957708,1772928631676,-151.0,0.00016896,2]
[407957709,1772928631685,-151.0,0.00016896,2]
[407957710,1772928631694,-500.0,0.00016898,2]
[407957711,1772928631703,-500.0,0.00016898,2]
[407957712,1772928631712,-500.0,0.00016898,2]
[407957713,1772928631721,-500.0,0.00016898,2]
[407957714,1772928631730,-500.0,0.00016898,2]
[407957715,1772928631739,-500.0,0.00016898,2]
[407957716,1772928631748,-500.0,0.00016898,2]
[407957717,1772928631756,-500.0,0.00016898,2]
[407957718,1772928631765,-500.0,0.00016898,2]
[407957719,1772928631774,-500.0,0.00016898,2]
[407957720,1772928631783,-500.0,0.00016898,2]
[407957721,1772928631794,-500.0,0.00016898,2]
[407957722,1772928631802,-481.78341083,0.00016898,2]
[407957723,1772928631811,-500.0,0.00016898,2]
[407957724,1772928631824,-500.0,0.00016898,2]
[407957725,1772928631833,-500.0,0.00016898,2]
[407957726,1772928631843,-500.0,0.00016898,2]
[407957727,1772928631852,-500.0,0.00016898,2]
[407957728,1772928631861,-500.0,0.00016898,2]
[407957729,1772928631870,-500.0,0.00016898,2]
[407957730,1772928631879,-500.0,0.00016898,2]
[407957731,1772928631888,-500.0,0.00016898,2]
[407957732,1772928631898,-500.0,0.00016898,2]
[407957733,1772928631907,-500.0,0.00016898,2]
[407957734,1772928631915,-500.0,0.00016898,2]
[407957735,1772928631924,-500.0,0.00016898,2]
[407957736,1772928631933,-500.0,0.00016898,2]
[407957737,1772928631942,-500.0,0.00016898,2]
[407957738,1772928631951,-500.0,0.00016898,2]
[407957739,1772928631960,-500.0,0.00016898,2]
[407957740,1772928631969,-500.0,0.00016898,2]
[407957741,1772928631978,-500.0,0.00016898,2]
[407957742,1772928631987,-500.0,0.00016898,2]
[407957743,1772928631996,-500.0,0.00016898,2]
[407957744,1772928632007,-500.0,0.00016898,2]
[407957745,1772928632018,-500.0,0.00016898,2]
[407957746,1772928632027,-500.0,0.00016898,2]
[407957747,1772928632036,-500.0,0.00016898,2]
[407957748,1772928632046,-350.0,0.00016898,2]
[407957749,1772928632056,-2500000.0,0.00016899,2]
[407957750,1772928632066,-5622.02504019,0.000169,3]
[407957751,1772928632076,-2500.0,0.000169,2]
[407957752,1772928632086,-3708.82164898,0.000169,2]
[407957753,1772928632096,-87953.0004,0.000169,2]
[407957754,1772928632105,-656.43829161,0.000169,2]
[407957755,1772928632114,-241.38212233,0.000169,2]
[407957756,1772928632123,-7333.08764799,0.00016918,2]
[407957757,1772928632131,-2892.0,0.00016986,2]
[407957758,1772928632141,-190.76895874,0.00016999,2]
[407957759,1772928632150,-536.97961848,0.00016999,2]
[407957760,1772928632159,-173467.03892764,0.00017,2]
[407957761,1772928632174,-1145.25619905,0.00017,2]
[407957762,1772928632184,-333.32,0.00017,2]
[407957768,1772928637604,-4236.4758086,0.00016897,2]
[407957769,1772928637614,-2500000.0,0.00016899,2]
[407957770,1772928637623,-76659.51941914,0.00017,2]
[407957771,1772928637633,-1302.56,0.00017,2]
[407957772,1772928637642,-504.0,0.00017,2]
[407957773,1772928637651,-376.0,0.00017048,2]
[407957774,1772928637660,-1450.0,0.00017108,2]
[407957775,1772928637669,-29527.34479017,0.0001711,2]
[407957776,1772928637678,-901.0,0.00017142,2]
[407957777,1772928637687,-39752.3497316,0.00017144,2]
[407957778,1772928637696,-500.0,0.00017172,2]
[407957779,1772928637704,-2562.87261757,0.0001742,2]
[407957780,1772928637713,-500.0,0.00017446,2]
[407957781,1772928637723,-39752.3497316,0.00017488,2]
[407957782,1772928637731,-1065.73,0.000176,2]
[407957783,1772928637740,-935.0,0.00017621,2]
[407957784,1772928637749,-518.54610185,0.0001772,2]
[407957785,1772928637758,-800.0,0.00017808,2]
[407957786,1772928637768,-39752.3497316,0.00017833,2]
[407957787,1772928637777,-277.84,0.00017961,2]
[407957789,1772928637786,-33090.90796579,0.00018003,2]
[407957791,1772928637795,-420.0,0.00018019,2]
[407957793,1772928637805,-2562.87261757,0.0001804,2]
[407957794,1772928637814,-1680.0,0.00018109,2]
[407957795,1772928637824,-39752.3497316,0.00018177,2]
[407957796,1772928637833,-150.0,0.00018197,2]
[407957797,1772928637842,-33090.90796573,0.00018214,2]
[407957798,1772928637851,-70111.63,0.00018391,2]
[407957799,1772928637861,-161.0,0.000184,2]
[407957800,1772928637870,-33090.90796573,0.00018425,2]
[407957801,1772928637879,-39752.3497316,0.00018522,2]
[407957802,1772928637889,-400.0,0.000186,6]
[407957803,1772928637898,-33090.90796573,0.00018635,2]
[407957804,1772928637908,-2562.87261757,0.0001866,2]
[407957806,1772928637917,-800.0,0.000187,6]
[407957807,1772928637926,-847.0,0.0001872,2]
[407957809,1772928637935,-161.0,0.0001872,2]
[407957812,1772928637944,-1200.0,0.000188,6]
[407957814,1772928637953,-1589.0,0.00018825,2]
[407957816,1772928637962,-33090.90796573,0.00018846,2]
[407957818,1772928637971,-39752.3497316,0.00018866,2]
[407957820,1772928637980,-1600.0,0.000189,6]
[407957822,1772928637989,-1600.0,0.00018904,2]
[407957824,1772928637998,-33090.90796573,0.00019057,2]
[407957826,1772928638009,-5000.0,0.00019139,2]
[407957828,1772928638021,-1244.87,0.00019178,30]
[407957830,1772928638030,-500.0,0.00019238,2]
[407957832,1772928638039,-500.0,0.00019238,2]
[407957834,1772928638048,-500.0,0.00019238,2]
[407957836,1772928638058,-500.0,0.00019238,2]
[407957838,1772928638067,-500.0,0.00019238,2]
[407957839,1772928638076,-500.0,0.00019238,2]
[407957840,1772928638085,-500.0,0.00019238,2]
[407957841,1772928638095,-500.0,0.00019238,2]
[407957842,1772928638104,-500.0,0.00019238,2]
[407957843,1772928638113,-500.0,0.00019238,2]
[407957844,1772928638123,-500.0,0.00019238,2]
[407957845,1772928638133,-500.0,0.00019238,2]
[407957846,1772928638142,-500.0,0.00019238,2]
[407957847,1772928638152,-500.0,0.00019238,2]
[407957848,1772928638161,-500.0,0.00019238,2]
[407957849,1772928638170,-500.0,0.00019238,2]
[407957850,1772928638180,-500.0,0.00019238,2]
[407957851,1772928638190,-500.0,0.00019238,2]
[407957852,1772928638199,-500.0,0.00019238,2]
[407957853,1772928638209,-500.0,0.00019238,2]
[407957854,1772928638218,-500.0,0.00019238,2]
[407957855,1772928638228,-500.0,0.00019238,2]
[407957856,1772928638237,-500.0,0.00019238,2]
[407957857,1772928638247,-500.0,0.00019238,2]
[407957858,1772928638255,-500.0,0.00019238,2]
[407957859,1772928638265,-500.0,0.00019238,2]
[407957860,1772928638274,-500.0,0.00019238,2]
[407957861,1772928638283,-539.36,0.00019238,2]
[407957862,1772928638292,-500.0,0.00019238,2]
[407957863,1772928638302,-500.0,0.00019238,2]
[407957864,1772928638311,-500.0,0.00019238,2]
[407957865,1772928638321,-500.0,0.00019238,2]
[407957866,1772928638330,-500.0,0.00019238,2]
[407957867,1772928638339,-500.0,0.00019238,2]
[407957868,1772928638348,-500.0,0.00019238,2]
[407957869,1772928638358,-500.0,0.00019238,2]
[407957870,1772928638367,-500.0,0.00019238,2]
[407957871,1772928638377,-500.0,0.00019238,2]
[407957872,1772928638386,-500.0,0.00019238,2]
[407957873,1772928638396,-500.0,0.00019238,2]
[407957874,1772928638405,-500.0,0.00019238,2]
[407957875,1772928638415,-498.73,0.00019238,2]
[407957876,1772928638425,-500.0,0.00019238,2]
[407957877,1772928638434,-500.0,0.00019238,2]
[407957878,1772928638444,-500.0,0.00019238,2]
[407957879,1772928638453,-203.5620078,0.00019238,2]
[407957880,1772928638463,-500.0,0.00019238,2]
[407957881,1772928638472,-500.0,0.00019238,2]
[407957882,1772928638482,-279.9073084,0.00019238,2]
[407957883,1772928638492,-210.6126522,0.00019238,2]
[407957884,1772928638501,-500.0,0.00019238,2]
[407957885,1772928638511,-500.0,0.00019238,2]
[407957886,1772928638520,-500.0,0.00019238,2]
[407957887,1772928638530,-500.0,0.00019238,2]
[407957888,1772928638539,-500.0,0.00019238,2]
[407957889,1772928638548,-500.0,0.00019238,2]
[407957890,1772928638558,-500.0,0.00019238,2]
[407957891,1772928638567,-500.0,0.00019238,2]
[407957892,1772928638577,-500.0,0.00019238,2]
[407957893,1772928638587,-500.0,0.00019238,2]
[407957894,1772928638597,-500.0,0.00019238,2]
[407957895,1772928638606,-500.0,0.00019238,2]
[407957896,1772928638616,-500.0,0.00019238,2]
[407957897,1772928638626,-500.0,0.00019238,2]
[407957898,1772928638635,-1023.50453991,0.00019239,2]
[407957899,1772928638645,-240.67036535,0.00019239,2]
[407957900,1772928638655,-5405.32973742,0.00019239,2]
[407957901,1772928638664,-33090.90796573,0.00019268,2]
[407957902,1772928638673,-2562.87261757,0.0001928,2]
[407957903,1772928638683,-9999.99,0.00019339,2]
[407957904,1772928638692,-2110.46,0.00019339,2]
[407957905,1772928638702,-9999.99,0.00019339,2]
[407957906,1772928638712,-9999.99,0.00019339,2]
[407957907,1772928638722,-609.85,0.00019339,2]
[407957908,1772928638732,-150.99,0.00019339,2]
[407957909,1772928638742,-999.99,0.00019339,2]
[407957910,1772928638752,-9999.99,0.00019339,2]
[407957911,1772928638761,-150.99,0.00019339,2]
[407957912,1772928638770,-1206.61,0.00019339,2]
[407957913,1772928638779,-2132.0,0.0001936,2]
[407957914,1772928638789,-847.0,0.0001936,2]
[407957915,1772928638798,-847.0,0.0001936,2]
[407957916,1772928638807,-847.0,0.0001936,2]
[407957917,1772928638817,-33090.90796573,0.00019478,2]
[407957918,1772928638826,-168.0,0.00019596,2]
[407957919,1772928638836,-33090.90796573,0.00019689,2]
[407957920,1772928638845,-587.0,0.00019691,2]
[407957921,1772928638854,-175.25,0.0001979,2]
[407957922,1772928638864,-150.0,0.000198,30]
[407957923,1772928638874,-2000.0,0.000198,7]
[407957924,1772928638884,-1063.79327474,0.00019865,2]
[407957925,1772928638894,-2351.0,0.00019888,2]
[407957926,1772928638904,-1420.51608785,0.000199,2]
[407957927,1772928638914,-33090.90796573,0.000199,2]
[407957928,1772928638924,-400.0,0.000199,7]
[407957929,1772928638934,-2562.87261757,0.000199,2]
[407957930,1772928638943,-532.56934536,0.0001998,2]
[407957931,1772928638952,-194.14142927,0.0001999,2]
[407957932,1772928638962,-151.0,0.00019997,2]
[407957933,1772928638971,-151.0,0.00019997,2]
[407957934,1772928638981,-151.0,0.00019997,2]
[407957935,1772928638990,-600.0562129,0.00019999,2]
[407957936,1772928639000,-3268433.17792929,0.0002,2]
[407957937,1772928639011,-261.04,0.0002,7]
[407957938,1772928639023,-323.46432771,0.0002,2]
[407957939,1772928639033,-1000.0,0.0002,7]
[407957940,1772928639042,-175.25,0.0002006,2]
[407957941,1772928639054,-168.0,0.00020069,2]
[407957942,1772928639064,-168.0,0.00020074,2]
[407957943,1772928639073,-992.0,0.00020096,2]
[407957944,1772928639083,-175.25,0.0002033,2]
[407957945,1772928639095,-168.0,0.00020429,2]
[407957946,1772928639105,-168.0,0.00020433,2]
[407957947,1772928639115,-240.0,0.00020451,5]
[407957948,1772928639125,-168.0,0.00020464,2]
[407957949,1772928639135,-168.0,0.00020547,2]
[407957950,1772928639144,-175.25,0.000206,2]
[407957951,1772928639153,-168.0,0.00020737,2]
[407957952,1772928639163,-168.0,0.00020748,2]
[407957953,1772928639172,-161.0,0.00020845,2]
[407957954,1772928639182,-172.78723296,0.00020856,2]
[407957955,1772928639192,-160.0,0.00020856,2]
[407957956,1772928639202,-175.25,0.0002087,2]
[407957957,1772928639211,-168.0,0.00021069,2]
[407957958,1772928639221,-175.25,0.0002114,2]
[407957959,1772928639231,-168.0,0.0002116,2]
[407957960,1772928639240,-168.0,0.00021396,2]
[407957961,1772928639250,-175.25,0.0002141,2]
[407957962,1772928639259,-168.0,0.00021487,2]
[407957963,1772928639269,-504.0,0.000215,6]
[407957964,1772928639279,-823.0,0.00021518,2]
[407957965,1772928639288,-7333.08764799,0.00021572,2]
[407957966,1772928639298,-175.25,0.0002168,2]
[407957967,1772928639308,-3292.0,0.00021842,2]
[407957968,1772928639318,-154.94991358,0.00021918,2]
[407957969,1772928639327,-154.94991358,0.00021918,2]
[407957970,1772928639337,-166.25405761,0.00021918,2]
[407957971,1772928639346,-166.25405761,0.00021918,2]
[407957972,1772928639355,-175.25,0.0002195,2]
[407957973,1772928639364,-1244.87,0.00022114,30]
[407957974,1772928639374,-175.25,0.0002222,2]
[407957975,1772928639383,-3134.82,0.00022279,2]
[407957976,1772928639394,-1343.5,0.00022279,2]
[407957977,1772928639403,-175.25,0.0002249,2]
[407957978,1772928639412,-175.25,0.0002276,2]
[407957979,1772928639422,-141098.79544206,0.00022853,2]
[407957980,1772928639432,-1063.79327474,0.0002293,2]
[407957981,1772928639441,-175.25,0.0002303,2]
[407957982,1772928639451,-370.98,0.00023207,2]
[407957983,1772928639460,-175.25,0.000233,2]
[407957984,1772928639470,-1152.0,0.00023515,2]
[407957985,1772928639479,-175.25,0.0002357,2]
[407957986,1772928639490,-480.97,0.00023829,2]
[407957987,1772928639499,-175.25,0.0002384,2]
[407957988,1772928639508,-480.97,0.00023978,2]
[407957989,1772928639518,-885.0,0.00023988,2]
[407957990,1772928639527,-300.0,0.0002401,5]
[407957991,1772928639536,-175.25,0.0002411,2]
[407957992,1772928639545,-480.97,0.00024127,2]
[407957993,1772928639555,-480.97,0.00024276,2]
[407957994,1772928639564,-160.0,0.00024314,3]
[407957995,1772928639573,-10000.0,0.00024378,2]
[407957997,1772928639583,-175.25,0.0002438,2]
[407957998,1772928639592,-480.97,0.00024425,2]
[407957999,1772928639601,-151.0,0.00024475,7]
[407958000,1772928639610,-1295.19930182,0.00024477,10]
[407958001,1772928639619,-480.97,0.00024574,2]
[407958002,1772928639628,-175.25,0.0002465,2]
[407958003,1772928639639,-1000.0,0.00024658,2]
[407958004,1772928639649,-150.0,0.00024658,2]
[407958005,1772928639658,-200.0,0.00024672,2]
[407958006,1772928639667,-200.0,0.00024672,2]
[407958007,1772928639676,-500.0,0.00024672,2]
[407958008,1772928639685,-480.97,0.00024723,2]
[407958009,1772928639695,-480.97,0.00024872,2]
[407958010,1772928639704,-151.0,0.00024897,7]
[407958011,1772928639713,-151.0,0.000249,2]
[407958012,1772928639722,-151.0,0.000249,2]
[407958013,1772928639731,-151.0,0.000249,2]
[407958014,1772928639741,-151.0,0.000249,2]
[407958015,1772928639750,-151.0,0.000249,2]
[407958016,1772928639759,-151.0,0.000249,2]
[407958017,1772928639768,-151.0,0.000249,2]
[407958018,1772928639777,-151.0,0.000249,2]
[407958019,1772928639787,-151.0,0.000249,2]
[407958020,1772928639797,-151.0,0.000249,2]
[407958021,1772928639806,-400.0,0.000249,9]
[407958022,1772928639815,-151.0,0.000249,2]
[407958023,1772928639824,-210.84861,0.000249,2]
[407958024,1772928639833,-604534.54879,0.000249,3]
[407958025,1772928639842,-151.0,0.000249,2]
[407958026,1772928639851,-406.767116,0.000249,2]
[407958027,1772928639860,-176.445298,0.000249,2]
[407958028,1772928639872,-406.767116,0.000249,2]
[407958029,1772928639882,-176.445298,0.000249,2]
[407958030,1772928639892,-406.767116,0.000249,2]
[407958031,1772928639903,-176.445298,0.000249,2]
[407958032,1772928639914,-406.767116,0.000249,2]
[407958033,1772928639924,-176.445298,0.000249,2]
[407958034,1772928639935,-151.0,0.000249,2]
[407958035,1772928639946,-151.0,0.000249,2]
[407958036,1772928639956,-175.25,0.0002492,2]
[407958037,1772928639969,-481.06,0.00025021,2]
[407958038,1772928639979,-1244.87,0.00025049,30]
[407958039,1772928639989,-554.98,0.00025077,2]
[407958040,1772928639999,-175.25,0.0002519,2]
[407958041,1772928640011,-277.84,0.00025234,2]
[407958042,1772928640021,-175.25,0.0002546,2]
[407958043,1772928640030,-1138.0,0.00025697,2]
[407958044,1772928640040,-175.25,0.0002573,2]
[407958045,1772928640051,-150.0,0.0002589,2]
[407958046,1772928640061,-504.0,0.00026,10]
[407958047,1772928640071,-175.42,0.00026,2]
[407958048,1772928640081,-7333.08764799,0.00026225,2]
[407958049,1772928640091,-992.15801986,0.00026431,2]
[407958050,1772928640102,-262.0,0.0002678,10]
[407958051,1772928640111,-165.39476409,0.00027,2]
[407958052,1772928640120,-783.12,0.00027,14]
[407958053,1772928640131,-403.0,0.0002711,10]
[407958054,1772928640141,-150.0,0.00027185,2]
[407958055,1772928640151,-1401.32464723,0.00027297,2]
[407958057,1772928640160,-155.55756851,0.00027369,2]
[407958058,1772928640169,-15014.39,0.00027397,10]
[407958059,1772928640179,-577.97,0.000274,7]
[407958060,1772928640189,-5681.70839644,0.00027476,2]
[407958061,1772928640198,-1244.87,0.00027984,30]
[407958062,1772928640208,-1398.1513,0.00028142,2]
[407958063,1772928640218,-3413.02758797,0.00028142,2]
[407958064,1772928640227,-150.0,0.00028179,7]
[407958065,1772928640237,-253.424256,0.00028182,7]
[407958066,1772928640246,-150.0,0.00028358,7]
[407958067,1772928640257,-150.0,0.00028358,7]
[407958068,1772928640268,-150.0,0.00028358,7]
[407958069,1772928640279,-150.0,0.00028358,7]
[407958070,1772928640290,-150.0,0.00028358,7]
[407958071,1772928640299,-150.04993963,0.00028358,7]
[407958072,1772928640309,-250.0,0.00028358,2]
[407958073,1772928640320,-150.0,0.00028358,7]
[407958074,1772928640330,-2460.0,0.00028393,2]
[407958075,1772928640342,-200.0,0.00028413,7]
[407958076,1772928640353,-150.0,0.00028413,7]
[407958077,1772928640363,-150.0,0.00028413,7]
[407958078,1772928640373,-259.93316597,0.00028413,7]
[407958079,1772928640383,-150.0,0.00028413,7]
[407958080,1772928640394,-200.0,0.00028413,7]
[407958081,1772928640404,-32918.3967,0.00028445,2]
[407958082,1772928640415,-1000.0,0.00028445,2]
[407958083,1772928640424,-200.0,0.00028468,7]
[407958084,1772928640434,-200.0,0.00028468,7]
[407958085,1772928640443,-200.0,0.00028468,7]
[407958086,1772928640452,-150.0,0.00028544,2]
[407958087,1772928640462,-500.0,0.00028624,120]
[407958088,1772928640471,-500.0,0.00028624,120]
[407958089,1772928640481,-500.0,0.00028624,120]
[407958090,1772928640490,-500.0,0.00028624,120]
[407958091,1772928640499,-1685.16816688,0.00028635,2]
[407958092,1772928640509,-500.0,0.00028735,120]
[407958093,1772928640518,-500.0,0.00028735,120]
[407958094,1772928640527,-500.0,0.00028735,120]
[407958095,1772928640537,-500.0,0.00028735,120]
[407958096,1772928640547,-500.0,0.00028735,40]
[407958097,1772928640556,-500.0,0.00028735,40]
[407958098,1772928640566,-500.0,0.00028735,120]
[407958099,1772928640576,-500.0,0.00028735,120]
[407958100,1772928640585,-500.0,0.00028735,120]
[407958101,1772928640595,-500.0,0.00028735,120]
[407958102,1772928640604,-500.0,0.00028735,30]
[407958103,1772928640614,-500.0,0.00028745,120]
[407958104,1772928640624,-500.0,0.00028745,120]
[407958105,1772928640634,-500.0,0.00028745,120]
[407958106,1772928640643,-500.0,0.00028745,120]
[407958107,1772928640653,-500.0,0.00028745,120]
[407958108,1772928640663,-500.0,0.00028745,120]
[407958109,1772928640672,-500.0,0.00028745,120]
[407958110,1772928640681,-500.0,0.00028745,120]
[407958111,1772928640691,-500.0,0.00028745,120]
[407958112,1772928640700,-500.0,0.00028745,120]
[407958113,1772928640709,-500.0,0.00028745,120]
[407958114,1772928640718,-500.0,0.00028745,120]
[407958115,1772928640727,-500.0,0.00028745,120]
[407958116,1772928640736,-500.0,0.00028745,120]
[407958117,1772928640746,-500.0,0.00028745,120]
[407958118,1772928640755,-500.0,0.00028745,120]
[407958119,1772928640764,-500.0,0.00028745,120]
[407958120,1772928640773,-500.0,0.00028745,120]
[407958121,1772928640783,-500.0,0.00028745,40]
[407958122,1772928640792,-172.81,0.000288,7]
[407958123,1772928640802,-163.169,0.00028846,2]
[407958124,1772928640811,-1341.0,0.00028846,2]
[407958125,1772928640820,-619.0,0.00028846,2]
[407958126,1772928640830,-1042.0,0.00028846,2]
[407958127,1772928640840,-3504.749,0.00028846,2]
[407958128,1772928640849,-150.217,0.00028846,2]
[407958129,1772928640858,-1298.567,0.00028846,2]
[407958130,1772928640868,-1216.17,0.00028846,2]
[407958131,1772928640877,-922.0,0.00028846,2]
[407958132,1772928640886,-842.0,0.00029435,3]
[407958133,1772928640895,-300.0,0.00029771,14]
[407958134,1772928640904,-150.0,0.00029971,2]
[407958135,1772928640913,-577.97,0.0003,7]
[407958136,1772928640923,-2194.99,0.00030015,2]
[407958137,1772928640932,-277.84,0.00030017,2]
[407958138,1772928640941,-166.5,0.0003006,2]
[407958139,1772928640950,-504.0,0.000305,14]
[407958140,1772928640959,-7333.08764799,0.00030879,2]
[407958141,1772928640968,-1244.87,0.0003092,30]
[407958142,1772928640977,-2459.0,0.00031393,2]
[407958143,1772928640987,-150.0,0.0003147,2]
[407958144,1772928640996,-2194.99,0.00031516,2]
[407958145,1772928641005,-1341.0,0.00031846,2]
[407958146,1772928641016,-619.0,0.00031846,2]
[407958147,1772928641025,-1042.0,0.00031846,2]
[407958148,1772928641035,-1279.0,0.00031846,2]
[407958149,1772928641044,-1212.0,0.00031846,2]
[407958150,1772928641055,-921.0,0.00031846,2]
[407958151,1772928641065,-161.369702,0.00032406,7]
[407958152,1772928641074,-2194.99,0.00033016,2]
[407958153,1772928641083,-150.0,0.00033043,2]
[407958154,1772928641093,-1281.37665699,0.00033205,30]
[407958155,1772928641103,-577.97,0.000333,14]
[407958156,1772928641112,-1281.37665699,0.00033342,30]
[407958157,1772928641122,-1074.3336151,0.00033359,2]
[407958158,1772928641131,-3708.82164898,0.000334,2]
[407958159,1772928641141,-656.4382916,0.000334,2]
[407958160,1772928641150,-1281.37665699,0.00033452,30]
[407958161,1772928641159,-1281.37665699,0.00033589,30]
[407958162,1772928641169,-307.58164251,0.00033703,3]
[407958163,1772928641178,-1281.37665699,0.00033726,30]
[407958164,1772928641187,-1244.87,0.00033855,30]
[407958165,1772928641196,-1281.37665699,0.00033863,30]
[407958166,1772928641206,-300.0,0.00033987,33]
[407958167,1772928641216,-1281.37665699,0.00034,30]
[407958168,1772928641225,-652.6,0.00034,30]
[407958169,1772928641235,-1281.37665699,0.00034137,30]
[407958170,1772928641245,-1281.37665699,0.00034274,30]
[407958171,1772928641255,-1281.37665699,0.00034411,30]
[407958172,1772928641265,-2194.99,0.00034517,2]
[407958173,1772928641274,-1281.37665699,0.00034521,30]
[407958174,1772928641284,-1281.37665699,0.00034658,30]
[407958175,1772928641294,-150.0,0.00034696,2]
[407958176,1772928641304,-1500.0,0.00034795,2]
[407958177,1772928641315,-577.97,0.000348,14]
[407958178,1772928641325,-619.0,0.00034846,2]
[407958179,1772928641335,-1042.0,0.00034846,2]
[407958180,1772928641344,-274.45084377,0.00035,30]
[407958181,1772928641354,-504.0,0.00035,18]
[407958182,1772928641364,-7333.08764799,0.00035533,2]
[407958183,1772928641374,-1000.0,0.00035587,2]
[407958184,1772928641384,-181.34580949,0.00035616,2]
[407958185,1772928641394,-372.62543569,0.00036,120]
[407958186,1772928641404,-2194.99,0.00036018,2]
[407958187,1772928641414,-154.35,0.0003615,2]
[407958188,1772928641423,-150.0,0.0003643,2]
[407958189,1772928641433,-1244.87,0.00036791,30]
[407958190,1772928641442,-554.98,0.00036858,2]
[407958191,1772928641452,-300.0,0.0003707,43]
[407958192,1772928641461,-500.0,0.00037094,38]
[407958193,1772928641471,-4616.07218291,0.000372,120]
[407958194,1772928641480,-4616.07218289,0.000372,120]
[407958195,1772928641490,-4616.07218289,0.000372,120]
[407958196,1772928641499,-154.35,0.000375,2]
[407958197,1772928641509,-654.33056845,0.00037753,120]
[407958198,1772928641519,-619.0,0.00037846,2]
[407958199,1772928641529,-296.77,0.00038034,30]
[407958200,1772928641538,-150.0,0.00038252,2]
[407958201,1772928641548,-277.0,0.00038268,2]
[407958202,1772928641557,-1999.0,0.00038356,120]